[Event "Kvibergspelen 2022"]
[Site "Kviberg Park Hotel & Conference, Krutvagen 2, Gothenburg, Sweden"]
[Date "2022.10.02"]
[Round "8.5"]
[White "Abdrlauf, Elham"]
[Black "Mitusov, Semen"]
[Result "1/2-1/2"]
[TimeControl "15 minutes + 5 seconds per move from move one (Round 1 - 4) / 90 minutes + 30 seconds per move from move one (Round 5 - 8)"]
[WhiteTitle "IM"]
[BlackTitle "FM"]
[WhiteFideId "1533533"]
[BlackFideId "14151049"]
[WhiteElo "2487"]
[BlackElo "2418"]

1. e4 {[%clk 01:27:09]} {[%emt 00:03:50]} e5 {[%clk 01:30:39]} {[%emt
00:00:22]} 2. Nc3 {[%clk 01:27:32]} {[%emt 00:00:06]} Nc6 {[%clk 01:31:05]}
{[%emt 00:00:05]} 3. g3 {[%clk 01:27:56]} {[%emt 00:00:05]} Bc5 {[%clk
01:30:35]} {[%emt 00:01:01]} 4. Bg2 {[%clk 01:28:19]} {[%emt 00:00:06]} a6
{[%clk 01:30:57]} {[%emt 00:00:10]} 5. Nge2 {[%clk 01:28:38]} {[%emt 00:00:08]}
d6 {[%clk 01:31:22]} {[%emt 00:00:06]} 6. O-O {[%clk 01:28:54]} {[%emt
00:00:13]} Be6 {[%clk 01:29:06]} {[%emt 00:02:49]} 7. Nd5 {[%clk 01:22:28]}
{[%emt 00:06:55]} Qd7 {[%clk 01:27:32]} {[%emt 00:02:04]} 8. c3 {[%clk
01:22:34]} {[%emt 00:00:24]} Ba7 {[%clk 01:25:09]} {[%emt 00:02:53]} 9. d4
{[%clk 01:20:53]} {[%emt 00:02:11]} h5 {[%clk 01:21:35]} {[%emt 00:04:04]} 10.
h4 {[%clk 01:10:02]} {[%emt 00:11:19]} Nh6 {[%clk 01:10:23]} {[%emt 00:11:43]}
11. b4 {[%clk 01:04:04]} {[%emt 00:06:29]} Ne7 {[%clk 01:05:21]} {[%emt
00:05:32]} 12. Ne3 {[%clk 01:03:15]} {[%emt 00:01:18]} Bh3 {[%clk 01:03:58]}
{[%emt 00:01:53]} 13. c4 {[%clk 00:57:16]} {[%emt 00:06:29]} Bxg2 {[%clk
01:00:25]} {[%emt 00:04:03]} 14. Kxg2 {[%clk 00:57:36]} {[%emt 00:00:08]} Ng4
{[%clk 00:59:55]} {[%emt 00:01:01]} 15. Nxg4 {[%clk 00:43:59]} {[%emt
00:14:07]} hxg4 {[%clk 01:00:14]} {[%emt 00:00:12]} 16. dxe5 {[%clk 00:44:05]}
{[%emt 00:00:23]} dxe5 {[%clk 00:59:44]} {[%emt 00:01:01]} 17. Qxd7+ {[%clk
00:43:26]} {[%emt 00:01:09]} Kxd7 {[%clk 01:00:05]} {[%emt 00:00:10]} 18. c5
{[%clk 00:42:57]} {[%emt 00:00:58]} Ke6 {[%clk 01:00:00]} {[%emt 00:00:35]} 19.
Be3 {[%clk 00:42:13]} {[%emt 00:01:12]} Rad8 {[%clk 00:51:02]} {[%emt
00:09:30]} 20. Rfd1 {[%clk 00:36:20]} {[%emt 00:06:23]} Nc6 {[%clk 00:46:33]}
{[%emt 00:05:00]} 21. a3 {[%clk 00:36:06]} {[%emt 00:00:43]} Rxd1 {[%clk
00:44:34]} {[%emt 00:02:29]} 22. Rxd1 {[%clk 00:36:32]} {[%emt 00:00:04]} Rd8
{[%clk 00:44:55]} {[%emt 00:00:09]} 23. Rxd8 {[%clk 00:36:14]} {[%emt
00:00:48]} Nxd8 {[%clk 00:45:22]} {[%emt 00:00:03]} 24. f3 {[%clk 00:30:46]}
{[%emt 00:05:58]} gxf3+ {[%clk 00:45:06]} {[%emt 00:00:47]} 25. Kxf3 {[%clk
00:31:15]} f6 {[%clk 00:41:20]} {[%emt 00:04:16]} 26. Nc3 {[%clk 00:27:38]}
{[%emt 00:04:08]} Kf7 {[%clk 00:39:53]} {[%emt 00:01:56]} 27. Ke2 {[%clk
00:26:32]} {[%emt 00:01:36]} Ne6 {[%clk 00:36:52]} {[%emt 00:03:30]} 28. Kd3
{[%clk 00:24:07]} {[%emt 00:02:56]} c6 {[%clk 00:36:30]} {[%emt 00:00:52]} 29.
Kc4 {[%clk 00:22:04]} {[%emt 00:02:33]} Bb8 {[%clk 00:36:35]} {[%emt 00:00:26]}
30. a4 {[%clk 00:22:00]} {[%emt 00:00:35]} Bc7 {[%clk 00:36:57]} {[%emt
00:00:08]} 31. g4 {[%clk 00:21:13]} {[%emt 00:01:19]} Bd8 {[%clk 00:30:59]}
{[%emt 00:06:27]} 32. Ne2 {[%clk 00:18:41]} {[%emt 00:03:01]} Be7 {[%clk
00:30:38]} {[%emt 00:00:51]} 33. Ng3 {[%clk 00:18:04]} {[%emt 00:01:05]} Bf8
{[%clk 00:30:54]} {[%emt 00:00:16]} 34. Nf5 {[%clk 00:17:29]} {[%emt 00:01:05]}
Be7 {[%clk 00:30:21]} {[%emt 00:01:04]} 35. b5 {[%clk 00:17:19]} {[%emt
00:00:40]} axb5+ {[%clk 00:30:38]} {[%emt 00:00:15]} 36. axb5 {[%clk 00:17:44]}
{[%emt 00:00:04]} Bf8 {[%clk 00:30:51]} {[%emt 00:00:17]} 37. Ng3 {[%clk
00:17:18]} {[%emt 00:00:55]} Nc7 {[%clk 00:29:45]} {[%emt 00:01:36]} 38. b6
{[%clk 00:15:39]} {[%emt 00:02:09]} Ne6 {[%clk 00:29:39]} {[%emt 00:00:35]} 39.
Nf1 {[%clk 00:16:00]} {[%emt 00:00:10]} Be7 {[%clk 00:29:05]} {[%emt 00:01:05]}
40. Nd2 {[%clk 00:16:14]} {[%emt 00:00:15]} Kg6 {[%clk 00:27:31]} {[%emt
00:02:04]} 41. Nb1 {[%clk 00:13:55]} {[%emt 00:02:47]} Kf7 {[%clk 00:27:34]}
{[%emt 00:00:30]} 42. Nc3 {[%clk 00:14:10]} {[%emt 00:00:13]} Ke8 {[%clk
00:27:13]} {[%emt 00:00:51]} 43. Ne2 {[%clk 00:14:26]} {[%emt 00:00:15]} Kf7
{[%clk 00:27:17]} {[%emt 00:00:27]} 44. Nc1 {[%clk 00:14:49]} {[%emt 00:00:06]}
Ke8 {[%clk 00:27:38]} {[%emt 00:00:10]} 45. Nb3 {[%clk 00:15:14]} {[%emt
00:00:05]} Kd7 {[%clk 00:27:44]} {[%emt 00:00:24]} 46. Kd3 {[%clk 00:15:40]}
{[%emt 00:00:04]} Kc8 {[%clk 00:27:31]} {[%emt 00:00:42]} 47. Ke2 {[%clk
00:15:52]} {[%emt 00:00:19]} Kd7 {[%clk 00:27:30]} {[%emt 00:00:31]} 48. Kf3
{[%clk 00:16:17]} {[%emt 00:00:05]} Ke8 {[%clk 00:21:58]} {[%emt 00:06:03]} 49.
Kg3 {[%clk 00:14:41]} {[%emt 00:02:05]} Kf7 {[%clk 00:22:08]} {[%emt 00:00:21]}
50. Kf2 {[%clk 00:14:50]} {[%emt 00:00:19]} Ke8 {[%clk 00:22:32]} {[%emt
00:00:07]} 51. Ke2 {[%clk 00:15:02]} {[%emt 00:00:18]} Kf7 {[%clk 00:22:49]}
{[%emt 00:00:14]} 52. Kd3 {[%clk 00:15:12]} {[%emt 00:00:20]} Ke8 {[%clk
00:23:15]} {[%emt 00:00:04]} 53. Kc4 {[%clk 00:15:06]} {[%emt 00:00:35]} Kd7
{[%clk 00:23:41]} {[%emt 00:00:03]} 54. Nd2 {[%clk 00:15:26]} {[%emt 00:00:11]}
Ke8 {[%clk 00:23:52]} {[%emt 00:00:18]} 55. Nf1 {[%clk 00:15:33]} {[%emt
00:00:23]} Kf7 {[%clk 00:24:17]} {[%emt 00:00:06]} 56. Ng3 {[%clk 00:15:53]}
{[%emt 00:00:09]} Ke8 {[%clk 00:24:23]} {[%emt 00:00:25]} 57. Nf5 {[%clk
00:15:59]} {[%emt 00:00:23]} Kf7 {[%clk 00:24:49]} {[%emt 00:00:05]} 58. h5
{[%clk 00:16:08]} {[%emt 00:00:20]} Bf8 {[%clk 00:25:00]} {[%emt 00:00:20]} 59.
Nh4 {[%clk 00:16:17]} {[%emt 00:00:20]} Be7 {[%clk 00:24:51]} {[%emt 00:00:40]}
60. Ng6 {[%clk 00:15:59]} {[%emt 00:00:48]} Bf8 {[%clk 00:21:37]} {[%emt
00:03:45]} 61. g5 {[%clk 00:15:01]} {[%emt 00:01:27]} Be7 {[%clk 00:20:30]}
{[%emt 00:01:38]} 62. Nxe7 {[%clk 00:03:40]} {[%emt 00:11:51]} Kxe7 {[%clk
00:20:52]} {[%emt 00:00:06]} 63. g6 {[%clk 00:04:09]} Nf8 {[%clk 00:20:11]}
{[%emt 00:01:13]} 64. Kd3 {[%clk 00:04:26]} {[%emt 00:00:12]} Ke6 {[%clk
00:20:31]} {[%emt 00:00:10]} 65. Ke2 {[%clk 00:01:23]} {[%emt 00:03:33]} f5
{[%clk 00:20:23]} {[%emt 00:00:40]} 66. h6 {[%clk 00:01:03]} {[%emt 00:00:50]}
Nxg6 {[%clk 00:20:14]} {[%emt 00:00:39]} 67. exf5+ {[%clk 00:01:12]} {[%emt
00:00:20]} Kxf5 {[%clk 00:20:40]} {[%emt 00:00:04]} 68. hxg7 {[%clk 00:01:39]}
{[%emt 00:00:02]} Ne7 {[%clk 00:21:05]} {[%emt 00:00:05]} 69. Kd3 {[%emt
00:02:59]} Ng8 {[%clk 00:19:50]} 70. Bc1 {[%clk 00:00:33]} {[%emt 00:00:51]}
Nf6 {[%clk 00:19:58]} {[%emt 00:00:23]} 71. Bb2 {[%clk 00:00:38]} {[%emt
00:00:25]} Ng8 {[%clk 00:20:26]} {[%emt 00:00:03]} 72. Ke3 {[%clk 00:00:57]}
{[%emt 00:00:10]} Nf6 {[%clk 00:20:46]} {[%emt 00:00:10]} 73. Kf3 {[%clk
00:00:53]} {[%emt 00:00:34]} Kg6 {[%clk 00:19:29]} {[%emt 00:01:47]} 74. Bxe5
{[%clk 00:01:16]} {[%emt 00:00:07]} Kxg7 {[%clk 00:19:57]} {[%emt 00:00:02]} 75.
Bxf6+ {[%clk 00:01:05]} {[%emt 00:00:40]} Kxf6 {[%clk 00:20:23]} {[%emt
00:00:06]} 76. Kf4 {[%clk 00:01:27]} {[%emt 00:00:05]} Ke6 {[%clk 00:20:48]}
{[%emt 00:00:08]} 77. Ke4 {[%clk 00:01:54]} {[%emt 00:00:02]} Kf6 {[%clk
00:21:15]} {[%emt 00:00:04]} 78. Kf4 {[%clk 00:02:16]} {[%emt 00:00:07]} Ke6
{[%clk 00:21:43]} {[%emt 00:00:03]} 79. Ke4 {[%clk 00:02:41]} {[%emt 00:00:05]}
Kf6 80. Kf4 {[%clk 00:02:41]} 1/2-1/2

[Event "Kvibergspelen 2022"]
[Site "Kviberg Park Hotel & Conference, Krutvagen 2, Gothenburg, Sweden"]
[Date "2022.10.02"]
[Round "8.6"]
[White "Hamark, Jesper"]
[Black "Jakenberg, Jussi"]
[Result "1-0"]
[TimeControl "15 minutes + 5 seconds per move from move one (Round 1 - 4) / 90 minutes + 30 seconds per move from move one (Round 5 - 8)"]
[WhiteFideId "1704338"]
[BlackFideId "1710931"]
[WhiteElo "2348"]
[BlackElo "2114"]

1. c4 {[%clk 01:30:47]} {[%emt 00:00:12]} e6 {[%clk 01:30:56]} {[%emt
00:00:04]} 2. Nc3 {[%clk 01:31:08]} {[%emt 00:00:10]} d5 {[%clk 01:31:20]}
{[%emt 00:00:06]} 3. d4 {[%clk 01:31:30]} {[%emt 00:00:07]} a6 {[%clk
01:31:22]} {[%emt 00:00:29]} 4. cxd5 {[%clk 01:31:16]} {[%emt 00:00:43]} exd5
{[%clk 01:31:49]} {[%emt 00:00:03]} 5. Bf4 {[%clk 01:31:18]} {[%emt 00:00:28]}
Nf6 {[%clk 01:31:33]} {[%emt 00:00:47]} 6. e3 {[%clk 01:31:37]} {[%emt
00:00:11]} Bd6 {[%clk 01:31:06]} {[%emt 00:00:56]} 7. Bxd6 {[%clk 01:31:08]}
{[%emt 00:00:59]} Qxd6 {[%clk 01:31:05]} {[%emt 00:00:31]} 8. Bd3 {[%clk
01:31:28]} {[%emt 00:00:10]} O-O {[%clk 01:27:13]} {[%emt 00:04:22]} 9. Nge2
{[%clk 01:26:58]} {[%emt 00:05:00]} Be6 {[%clk 01:25:47]} {[%emt 00:01:55]} 10.
Qd2 {[%clk 01:24:15]} {[%emt 00:03:12]} Nbd7 {[%clk 01:24:52]} {[%emt
00:01:26]} 11. O-O {[%clk 01:13:53]} {[%emt 00:10:51]} Rfe8 {[%clk 01:20:15]}
{[%emt 00:05:08]} 12. Rad1 {[%clk 01:09:52]} {[%emt 00:04:31]} c6 {[%clk
01:17:41]} {[%emt 00:03:04]} 13. Bb1 {[%clk 01:04:47]} {[%emt 00:05:36]} Rad8
{[%clk 01:13:09]} {[%emt 00:05:02]} 14. f3 {[%clk 01:02:12]} {[%emt 00:03:05]}
c5 {[%clk 01:09:38]} {[%emt 00:04:01]} 15. Rfe1 {[%clk 00:58:24]} {[%emt
00:04:17]} Qb8 {[%clk 01:00:14]} {[%emt 00:09:54]} 16. Nf4 {[%clk 00:56:39]}
{[%emt 00:02:15]} cxd4 {[%clk 00:57:00]} {[%emt 00:03:44]} 17. exd4 {[%clk
00:56:24]} {[%emt 00:00:45]} Qd6 {[%clk 00:55:32]} {[%emt 00:01:58]} 18. g3
{[%clk 00:53:20]} {[%emt 00:03:35]} Nb6 {[%clk 00:52:29]} {[%emt 00:03:33]} 19.
Kg2 {[%clk 00:43:51]} {[%emt 00:09:59]} Bd7 {[%clk 00:49:41]} {[%emt 00:03:17]}
20. b3 {[%clk 00:36:09]} {[%emt 00:08:12]} Na8 {[%clk 00:33:18]} {[%emt
00:16:53]} 21. Nd3 {[%clk 00:34:03]} {[%emt 00:02:36]} Rxe1 {[%clk 00:29:56]}
{[%emt 00:03:53]} 22. Rxe1 {[%clk 00:34:21]} {[%emt 00:00:11]} Nc7 {[%clk
00:30:00]} {[%emt 00:00:26]} 23. Ne5 {[%clk 00:28:01]} {[%emt 00:06:50]} Ne6
{[%clk 00:25:51]} {[%emt 00:04:39]} 24. Bf5 {[%emt 00:09:56]} Nf8 {[%clk
00:23:11]} 25. Bd3 {[%clk 00:21:21]} {[%emt 00:00:54]} Ne6 {[%clk 00:22:35]}
{[%emt 00:01:06]} 26. Bf5 {[%clk 00:20:12]} {[%emt 00:01:40]} Nf8 {[%clk
00:22:23]} {[%emt 00:00:42]} 27. Bb1 {[%clk 00:20:37]} {[%emt 00:00:05]} Ne6
{[%clk 00:22:11]} {[%emt 00:00:41]} 28. Ne2 {[%clk 00:19:53]} {[%emt 00:01:14]}
Qb6 {[%clk 00:18:22]} {[%emt 00:04:18]} 29. Rd1 {[%clk 00:17:58]} {[%emt
00:02:26]} Bb5 {[%clk 00:14:51]} {[%emt 00:04:01]} 30. Nf4 {[%clk 00:17:59]}
{[%emt 00:00:29]} Re8 {[%clk 00:11:11]} {[%emt 00:04:10]} 31. Nxe6 {[%clk
00:18:03]} {[%emt 00:00:26]} Qxe6 {[%clk 00:10:44]} {[%emt 00:00:57]} 32. a4
{[%clk 00:16:09]} {[%emt 00:02:26]} Bd7 {[%clk 00:09:46]} {[%emt 00:01:26]} 33.
g4 {[%clk 00:16:17]} {[%emt 00:00:21]} g6 {[%clk 00:09:24]} {[%emt 00:00:51]}
34. Qh6 {[%clk 00:14:23]} {[%emt 00:02:25]} Bc8 {[%clk 00:07:53]} {[%emt
00:02:01]} 35. Re1 {[%clk 00:11:25]} {[%emt 00:03:28]} Qb6 {[%clk 00:03:25]}
{[%emt 00:04:57]} 36. Qf4 {[%clk 00:11:30]} {[%emt 00:00:26]} Rf8 {[%clk
00:02:35]} {[%emt 00:01:20]} 37. Rc1 {[%clk 00:07:42]} {[%emt 00:04:19]} Ne8
{[%clk 00:02:40]} {[%emt 00:00:24]} 38. Rxc8 {[%clk 00:06:58]} {[%emt
00:01:14]} 1-0

[Event "Kvibergspelen 2022"]
[Site "Kviberg Park Hotel & Conference, Krutvagen 2, Gothenburg, Sweden"]
[Date "2022.10.02"]
[Round "8.7"]
[White "Svensson, Hakan"]
[Black "Mohammadi, Amir"]
[Result "0-1"]
[TimeControl "15 minutes + 5 seconds per move from move one (Round 1 - 4) / 90 minutes + 30 seconds per move from move one (Round 5 - 8)"]
[WhiteFideId "1714201"]
[BlackFideId "1705890"]
[WhiteElo "2067"]
[BlackElo "2294"]

1. d4 {[%clk 01:30:56]} {[%emt 00:00:04]} f5 {[%clk 01:30:55]} {[%emt
00:00:06]} 2. Bg5 {[%clk 01:31:16]} {[%emt 00:00:08]} d5 {[%clk 01:30:41]}
{[%emt 00:00:46]} 3. e3 {[%clk 01:31:35]} {[%emt 00:00:09]} c6 {[%clk
01:30:50]} {[%emt 00:00:23]} 4. c4 {[%clk 01:31:45]} {[%emt 00:00:19]} Qb6
{[%clk 01:30:32]} {[%emt 00:00:49]} 5. Nd2 {[%clk 01:29:08]} {[%emt 00:03:06]}
e6 {[%clk 01:30:30]} {[%emt 00:00:33]} 6. Ngf3 {[%clk 01:28:51]} {[%emt
00:00:46]} Nd7 {[%clk 01:30:46]} {[%emt 00:00:15]} 7. Bd3 {[%clk 01:28:34]}
{[%emt 00:00:46]} Ngf6 {[%clk 01:31:10]} {[%emt 00:00:07]} 8. cxd5 {[%clk
01:28:15]} {[%emt 00:00:49]} cxd5 {[%clk 01:31:32]} {[%emt 00:00:08]} 9. O-O
{[%clk 01:28:22]} {[%emt 00:00:23]} Bd6 {[%clk 01:31:57]} {[%emt 00:00:05]} 10.
Nb3 {[%clk 01:25:48]} {[%emt 00:03:02]} O-O {[%clk 01:32:00]} {[%emt 00:00:29]}
11. Rc1 {[%clk 01:23:32]} {[%emt 00:02:46]} Ne4 {[%clk 01:32:04]} {[%emt
00:00:25]} 12. Bf4 {[%clk 01:22:11]} {[%emt 00:01:50]} a5 {[%clk 01:30:13]}
{[%emt 00:02:22]} 13. Bxd6 {[%clk 01:17:36]} {[%emt 00:05:05]} Qxd6 {[%clk
01:29:53]} {[%emt 00:00:49]} 14. Qc2 {[%clk 01:15:38]} {[%emt 00:02:28]} a4
{[%clk 01:27:04]} {[%emt 00:03:21]} 15. Nc5 {[%clk 01:15:12]} {[%emt 00:00:55]}
Ndxc5 {[%clk 01:15:12]} {[%emt 00:12:23]} 16. dxc5 {[%clk 01:15:22]} {[%emt
00:00:19]} Qe7 {[%clk 01:15:04]} {[%emt 00:00:39]} 17. Ne5 {[%clk 01:00:46]}
{[%emt 00:15:04]} Ra5 {[%clk 01:03:53]} {[%emt 00:11:42]} 18. Bxe4 {[%clk
00:58:05]} {[%emt 00:03:10]} fxe4 {[%clk 01:02:58]} {[%emt 00:01:26]} 19. Qc3
{[%clk 00:53:55]} {[%emt 00:04:39]} Qc7 {[%clk 00:55:15]} {[%emt 00:08:14]} 20.
b4 {[%clk 00:53:19]} {[%emt 00:01:06]} axb3 {[%clk 00:55:04]} {[%emt 00:00:42]}
21. axb3 {[%clk 00:53:27]} {[%emt 00:00:22]} Rf5 {[%clk 00:54:26]} {[%emt
00:01:08]} 22. f4 {[%clk 00:53:29]} {[%emt 00:00:27]} exf3 {[%clk 00:54:51]}
{[%emt 00:00:05]} 23. Nxf3 {[%clk 00:53:50]} {[%emt 00:00:09]} Bd7 {[%clk
00:54:25]} {[%emt 00:00:56]} 24. b4 {[%clk 00:53:33]} {[%emt 00:00:47]} Ra8
{[%clk 00:53:31]} {[%emt 00:01:23]} 25. Nd4 {[%clk 00:53:20]} {[%emt 00:00:43]}
Rh5 {[%clk 00:52:56]} {[%emt 00:01:07]} 26. Nf3 {[%clk 00:47:12]} {[%emt
00:06:36]} e5 {[%clk 00:45:59]} {[%emt 00:07:28]} 27. g3 {[%clk 00:47:08]}
{[%emt 00:00:33]} Bb5 {[%clk 00:37:56]} {[%emt 00:08:34]} 28. Rf2 {[%clk
00:45:48]} {[%emt 00:01:48]} Rf8 {[%clk 00:36:53]} {[%emt 00:01:33]} 29. Rcc2
{[%clk 00:36:13]} {[%emt 00:10:07]} Rhf5 {[%clk 00:36:46]} {[%emt 00:00:37]} 30.
e4 {[%clk 00:34:59]} {[%emt 00:01:44]} dxe4 {[%clk 00:30:36]} {[%emt 00:06:40]}
31. Qb3+ {[%clk 00:32:40]} {[%emt 00:02:49]} Kh8 {[%clk 00:26:57]} {[%emt
00:04:09]} 32. Ng5 {[%clk 00:30:02]} {[%emt 00:03:08]} Qd8 {[%clk 00:22:46]}
{[%emt 00:04:42]} 33. Rxf5 {[%clk 00:16:23]} {[%emt 00:14:09]} Qd1+ {[%clk
00:22:52]} {[%emt 00:00:23]} 34. Kg2 {[%clk 00:15:16]} {[%emt 00:01:36]} Bf1+
{[%clk 00:22:54]} {[%emt 00:00:29]} 35. Kg1 {[%clk 00:15:21]} {[%emt 00:00:26]}
Bh3+ {[%clk 00:22:07]} {[%emt 00:01:15]} 36. Kf2 {[%clk 00:15:48]} {[%emt
00:00:05]} Rxf5+ {[%clk 00:22:29]} {[%emt 00:00:07]} 37. Ke3 {[%clk 00:15:48]}
{[%emt 00:00:30]} Rf3+ {[%clk 00:22:53]} {[%emt 00:00:07]} 0-1

[Event "Kvibergspelen 2022"]
[Site "Kviberg Park Hotel & Conference, Krutvagen 2, Gothenburg, Sweden"]
[Date "2022.10.02"]
[Round "8.8"]
[White "Olsson, William"]
[Black "Briem, Stephan"]
[Result "0-1"]
[TimeControl "15 minutes + 5 seconds per move from move one (Round 1 - 4) / 90 minutes + 30 seconds per move from move one (Round 5 - 8)"]
[WhiteTitle "FM"]
[WhiteFideId "1741721"]
[BlackFideId "2312506"]
[WhiteElo "2288"]
[BlackElo "2083"]

1. c4 {[%clk 01:30:56]} {[%emt 00:00:03]} e5 {[%clk 01:30:20]} {[%emt
00:00:40]} 2. g3 {[%clk 01:31:17]} {[%emt 00:00:07]} Nc6 {[%clk 01:30:12]}
{[%emt 00:00:40]} 3. Nc3 {[%clk 01:31:38]} {[%emt 00:00:08]} f5 {[%clk
01:29:58]} {[%emt 00:00:45]} 4. Nf3 {[%clk 01:31:56]} {[%emt 00:00:12]} Nf6
{[%clk 01:27:16]} {[%emt 00:03:12]} 5. d4 {[%clk 01:32:10]} {[%emt 00:00:16]}
e4 {[%clk 01:23:00]} {[%emt 00:04:46]} 6. Nh4 {[%clk 01:30:25]} {[%emt
00:02:15]} d6 {[%clk 01:22:20]} {[%emt 00:01:10]} 7. Ng2 {[%clk 01:30:01]}
{[%emt 00:00:54]} Be7 {[%clk 01:20:54]} {[%emt 00:01:56]} 8. e3 {[%clk
01:28:54]} {[%emt 00:01:38]} O-O {[%clk 01:19:35]} {[%emt 00:01:47]} 9. Be2
{[%clk 01:28:59]} {[%emt 00:00:26]} Qe8 {[%clk 01:12:58]} {[%emt 00:07:07]} 10.
O-O {[%clk 01:22:00]} {[%emt 00:07:29]} Nd8 {[%clk 01:12:01]} {[%emt 00:01:27]}
11. f3 {[%clk 01:20:51]} {[%emt 00:01:40]} Ne6 {[%clk 01:04:11]} {[%emt
00:08:19]} 12. f4 {[%clk 01:17:26]} {[%emt 00:03:55]} c5 {[%clk 01:02:54]}
{[%emt 00:01:48]} 13. Ne1 {[%clk 01:09:21]} {[%emt 00:08:34]} Nc7 {[%clk
00:59:09]} {[%emt 00:04:14]} 14. Nc2 {[%clk 01:07:54]} {[%emt 00:01:59]} a6
{[%clk 00:53:49]} {[%emt 00:05:49]} 15. b4 {[%clk 01:03:15]} {[%emt 00:05:09]}
b5 {[%clk 00:51:41]} {[%emt 00:02:37]} 16. a3 {[%clk 00:57:14]} {[%emt
00:06:32]} bxc4 {[%clk 00:47:17]} {[%emt 00:04:54]} 17. bxc5 {[%clk 00:55:56]}
{[%emt 00:01:48]} dxc5 {[%clk 00:45:08]} {[%emt 00:02:39]} 18. d5 {[%clk
00:50:42]} {[%emt 00:05:44]} Qf7 {[%clk 00:38:50]} {[%emt 00:06:47]} 19. Bxc4
{[%clk 00:46:35]} {[%emt 00:04:38]} Rd8 {[%clk 00:38:56]} {[%emt 00:00:24]} 20.
Qe2 {[%clk 00:44:04]} {[%emt 00:03:01]} Nfxd5 {[%clk 00:36:25]} {[%emt
00:03:01]} 21. a4 {[%clk 00:43:06]} {[%emt 00:01:28]} Be6 {[%clk 00:36:24]}
{[%emt 00:00:31]} 22. Nxd5 {[%clk 00:43:30]} {[%emt 00:00:06]} Nxd5 {[%clk
00:35:05]} {[%emt 00:01:48]} 23. Bxd5 {[%clk 00:42:23]} {[%emt 00:01:38]} Bxd5
{[%clk 00:33:07]} {[%emt 00:02:28]} 24. Na3 {[%clk 00:42:47]} {[%emt 00:00:06]}
Bb3 {[%clk 00:32:56]} {[%emt 00:00:41]} 25. a5 {[%clk 00:42:21]} {[%emt
00:00:56]} Rd3 {[%clk 00:31:23]} {[%emt 00:02:03]} 0-1